fUSD/lending_fUSD_20251017
["ID","MTS","AMOUNT","RATE_DAILY","PERIOD"]
[391684433,1760727067928,-150.0,0.00041659,30]
[391684434,1760727067937,-150.0,0.00041668,30]
[391684435,1760727067946,-150.0,0.00041671,30]
[391684436,1760727067956,-188.88797475,0.00041672,30]
[391684437,1760727067965,-382.54512332,0.00041672,30]
[391684438,1760727067974,-150.0,0.00041676,30]
[391684439,1760727067984,-150.0,0.00041684,30]
[391684440,1760727067993,-150.0,0.00041684,30]
[391684441,1760727068003,-150.0,0.00041719,30]
[391684442,1760727068012,-188.88797475,0.00041719,30]
[391684443,1760727068021,-150.0,0.00041719,30]
[391684444,1760727068031,-382.54512332,0.00041719,30]
[391684445,1760727068040,-150.0,0.00041732,30]
[391684446,1760727068050,-150.0,0.00041732,30]
[391684447,1760727068060,-150.0,0.00041745,30]
[391684448,1760727068070,-150.0,0.0004176,30]
[391684449,1760727068080,-150.0,0.0004176,30]
[391684450,1760727068089,-150.0,0.0004176,30]
[391684451,1760727068226,-150.0,0.0004176,30]
[391684452,1760727068236,-188.88797475,0.00041765,30]
[391684453,1760727068246,-382.54512332,0.00041765,30]
[391684454,1760727068256,-150.0,0.0004177,30]
[391684455,1760727068265,-150.0,0.00041778,30]
[391684456,1760727068275,-150.0,0.00041779,30]
[391684457,1760727068285,-1000.0,0.00041797,3]
[391684458,1760727068294,-188.88797475,0.00041811,30]
[391684459,1760727068304,-382.54512332,0.00041811,30]
[391684460,1760727068314,-150.0,0.00041819,30]
[391684461,1760727068323,-150.0,0.00041827,30]
[391684462,1760727068333,-150.0,0.00041837,30]
[391684463,1760727068342,-150.0,0.00041838,30]
[391684464,1760727068352,-150.0,0.00041852,30]
[391684465,1760727068362,-188.88797475,0.00041858,30]
[391684466,1760727068371,-382.54512332,0.00041858,30]
[391684467,1760727068380,-150.0,0.00041863,30]
[391684468,1760727068390,-150.0,0.00041875,30]
[391684469,1760727068399,-150.0,0.00041875,30]
[391684470,1760727068408,-1000.0,0.00041878,8]
[391684471,1760727068417,-150.0,0.00041894,30]
[391684472,1760727068427,-150.0,0.00041897,30]
[391684473,1760727068437,-1300.0,0.000419,15]
[391684474,1760727068446,-188.88797475,0.00041904,30]
[391684475,1760727068456,-382.54512332,0.00041904,30]
[391684476,1760727068465,-150.0,0.00041913,30]
[391684477,1760727068474,-150.0,0.00041923,30]
[391684478,1760727068484,-188.88797475,0.0004195,30]
[391684479,1760727068494,-382.54512332,0.0004195,30]
[391684480,1760727068503,-150.0,0.00041957,30]
[391684481,1760727068513,-150.0,0.00041957,30]
[391684482,1760727068523,-150.0,0.00041957,30]
[391684483,1760727068532,-150.0,0.00041968,30]
[391684484,1760727068542,-150.0,0.00041971,30]
[391684485,1760727068551,-150.0,0.0004199,30]
[391684486,1760727068561,-150.0,0.0004199,30]
[391684487,1760727068571,-150.0,0.0004199,30]
[391684488,1760727068582,-188.88797475,0.00041997,30]
[391684489,1760727068594,-382.54512332,0.00041997,30]
[391684490,1760727068604,-218.89,0.00042,30]
[391684491,1760727068613,-150.0,0.00042,53]
[391684492,1760727068623,-150.0,0.00042017,30]
[391684493,1760727068633,-150.0,0.00042018,30]
[391684494,1760727068643,-150.0,0.00042018,30]
[391684495,1760727068652,-150.0,0.00042036,30]
[391684496,1760727068663,-150.0,0.00042042,30]
[391684497,1760727068673,-188.88797475,0.00042043,30]
[391684498,1760727068683,-382.54512332,0.00042043,30]
[391684499,1760727068692,-150.0,0.00042051,30]
[391684500,1760727068702,-150.0,0.00042066,30]
[391684501,1760727068711,-150.0,0.00042066,30]
[391684502,1760727068721,-150.0,0.00042066,30]
[391684503,1760727068731,-150.0,0.00042076,30]
[391684504,1760727068740,-188.88797475,0.00042089,30]
[391684505,1760727068750,-382.54512332,0.00042089,30]
[391684506,1760727068760,-150.0,0.00042114,30]
[391684507,1760727068770,-150.0,0.00042116,30]
[391684508,1760727068779,-150.0,0.00042136,30]
[391684509,1760727068789,-188.88797475,0.00042136,30]
[391684510,1760727068799,-150.0,0.00042136,30]
[391684511,1760727068809,-382.54512332,0.00042136,30]
[391684512,1760727068818,-150.0,0.00042143,30]
[391684513,1760727068828,-150.0,0.00042144,30]
[391684514,1760727068837,-254.93760329,0.00042149,16]
[391684515,1760727068846,-150.0,0.00042162,30]
[391684516,1760727068856,-150.0,0.00042162,30]
[391684517,1760727068866,-188.88797475,0.00042182,30]
[391684518,1760727068875,-382.54512332,0.00042182,30]
[391684519,1760727068885,-150.0,0.0004219,30]
[391684520,1760727068895,-150.0,0.00042195,30]
[391684521,1760727068904,-150.0,0.0004221,30]
[391684522,1760727068913,-150.0,0.00042219,30]
[391684523,1760727068924,-150.0,0.00042219,30]
[391684524,1760727068934,-150.0,0.00042219,30]
[391684525,1760727068944,-150.0,0.00042219,30]
[391684526,1760727068954,-150.0,0.00042219,30]
[391684527,1760727068964,-188.88797475,0.00042228,30]
[391684528,1760727068974,-382.54512332,0.00042228,30]
[391684529,1760727068984,-150.0,0.00042238,30]
[391684530,1760727068994,-150.0,0.00042255,30]
[391684531,1760727069003,-150.0,0.00042257,30]
[391684532,1760727069012,-150.0,0.00042264,30]
[391684533,1760727069022,-188.88797475,0.00042275,30]
[391684534,1760727069032,-382.54512332,0.00042275,30]
[391684535,1760727069042,-150.0,0.00042296,30]
[391684536,1760727069052,-150.0,0.00042305,30]
[391684537,1760727069062,-150.0,0.00042305,30]
[391684538,1760727069078,-150.0,0.00042315,30]
[391684539,1760727069095,-188.88797475,0.00042321,30]
[391684540,1760727069105,-382.54512332,0.00042321,30]
[391684541,1760727069115,-1381.73,0.00042325,120]
[391684542,1760727069124,-150.0,0.00042332,30]
[391684543,1760727069134,-150.0,0.00042338,30]
[391684544,1760727069144,-150.0,0.00042353,30]
[391684545,1760727069154,-150.0,0.00042356,2]
[391684546,1760727069163,-150.0,0.00042356,2]
[391684547,1760727069173,-150.0,0.00042356,2]
[391684548,1760727069183,-500.0,0.00042356,2]
[391684549,1760727069193,-500.0,0.00042356,2]
[391684550,1760727069203,-150.0,0.00042356,2]
[391684551,1760727069213,-500.0,0.00042356,2]
[391684552,1760727069224,-150.0,0.00042356,2]
[391684553,1760727069234,-150.0,0.00042356,2]
[391684554,1760727069246,-150.0,0.00042356,2]
[391684555,1760727069256,-500.0,0.00042356,2]
[391684556,1760727069266,-500.0,0.00042356,2]
[391684557,1760727069276,-500.0,0.00042356,2]
[391684558,1760727069287,-500.0,0.00042356,2]
[391684559,1760727069297,-150.0,0.00042356,2]
[391684560,1760727069307,-2000.0,0.00042364,120]
[391684561,1760727069316,-188.88797475,0.00042368,30]
[391684562,1760727069326,-382.54512332,0.00042368,30]
[391684563,1760727069336,-150.0,0.00042372,30]
[391684564,1760727069346,-150.0,0.00042374,30]
[391684565,1760727069355,-150.0,0.00042401,30]
[391684566,1760727069365,-150.0,0.00042403,30]
[391684567,1760727069375,-150.0,0.00042411,2]
[391684568,1760727069385,-200.0,0.00042411,2]
[391684569,1760727069395,-500.0,0.00042411,2]
[391684570,1760727069404,-500.0,0.00042411,2]
[391684571,1760727069414,-150.0,0.00042411,2]
[391684572,1760727069424,-500.0,0.00042411,2]
[391684573,1760727069434,-173.96283758,0.00042411,2]
[391684574,1760727069444,-223.8937127,0.00042411,2]
[391684575,1760727069454,-150.0,0.00042411,2]
[391684576,1760727069463,-578.14792994,0.00042411,2]
[391684577,1760727069472,-500.0,0.00042411,2]
[391684578,1760727069482,-500.0,0.00042411,2]
[391684579,1760727069492,-150.0,0.00042412,30]
[391684580,1760727069502,-188.88797475,0.00042414,30]
[391684581,1760727069512,-382.54512332,0.00042414,30]
[391684582,1760727069521,-150.0,0.00042425,30]
[391684583,1760727069530,-150.0,0.00042434,30]
[391684584,1760727069540,-150.0,0.00042449,30]
[391684585,1760727069550,-150.0,0.00042449,30]
[391684586,1760727069559,-150.0,0.00042449,30]
[391684587,1760727069568,-150.0,0.00042449,30]
[391684588,1760727069578,-150.0,0.00042449,30]
[391684589,1760727069590,-150.0,0.00042449,30]
[391684590,1760727069600,-188.88797475,0.0004246,30]
[391684591,1760727069610,-382.54512332,0.0004246,30]
[391684592,1760727069619,-500.0,0.00042465,120]
[391684593,1760727069631,-150.0,0.00042466,2]
[391684594,1760727069641,-500.0,0.00042466,2]
[391684595,1760727069651,-500.0,0.00042466,2]
[391684596,1760727069662,-154.53232735,0.00042466,2]
[391684597,1760727069672,-500.0,0.00042466,2]
[391684598,1760727069681,-150.0,0.00042466,2]
[391684599,1760727069691,-500.0,0.00042466,2]
[391684600,1760727069701,-500.0,0.00042466,2]
[391684601,1760727069711,-150.0,0.00042486,30]
[391684602,1760727069720,-150.0,0.00042493,30]
[391684603,1760727069729,-150.0,0.00042496,30]
[391684604,1760727069739,-338.25,0.000425,90]
[391684605,1760727069748,-188.88797475,0.00042507,30]
[391684606,1760727069758,-382.54512332,0.00042507,30]
[391684607,1760727069768,-150.0,0.00042519,30]
[391684608,1760727069778,-522.26,0.0004252,17]
[391684609,1760727069787,-150.0,0.0004252,2]
[391684610,1760727069797,-500.0,0.0004252,2]
[391684611,1760727069807,-500.0,0.0004252,2]
[391684612,1760727069816,-500.0,0.0004252,2]
[391684613,1760727069826,-151.78574834,0.0004252,2]
[391684614,1760727069835,-407.23852358,0.0004252,2]
[391684615,1760727069845,-500.0,0.0004252,2]
[391684616,1760727069855,-150.0,0.00042525,30]
[391684617,1760727069864,-150.0,0.00042544,30]
[391684618,1760727069874,-150.0,0.00042553,30]
[391684619,1760727069883,-188.88797475,0.00042553,30]
[391684620,1760727069893,-150.0,0.00042553,30]
[391684621,1760727069903,-382.54512332,0.00042553,30]
[391684622,1760727069912,-150.0,0.0004256,30]
[391684623,1760727069922,-200.0,0.00042575,2]
[391684624,1760727069932,-500.0,0.00042575,2]
[391684625,1760727069941,-500.0,0.00042575,2]
[391684626,1760727069951,-610.64745741,0.00042575,2]
[391684627,1760727069961,-500.0,0.00042575,2]
[391684628,1760727069970,-150.0,0.00042586,30]
[391684629,1760727069979,-150.0,0.00042592,30]
[391684630,1760727069989,-150.0,0.00042592,30]
[391684631,1760727069998,-188.88797475,0.00042599,30]
[391684632,1760727070010,-382.54512332,0.00042599,30]
[391684633,1760727070019,-150.0,0.00042602,30]
[391684634,1760727070029,-150.0,0.00042613,30]
[391684635,1760727070038,-150.0,0.00042613,30]
[391684636,1760727070048,-150.0,0.00042613,30]
[391684637,1760727070058,-500.0,0.0004263,2]
[391684638,1760727070068,-500.0,0.0004263,2]
[391684639,1760727070078,-500.0,0.0004263,2]
[391684640,1760727070087,-150.0,0.00042634,30]
[391684641,1760727070097,-150.0,0.0004264,30]
[391684642,1760727070107,-188.88797475,0.00042646,30]
[391684643,1760727070116,-382.54512332,0.00042646,30]
[391684644,1760727070126,-369.64188355,0.00042666,15]
[391684645,1760727070136,-261.78538511,0.0004267,15]
[391684646,1760727070145,-150.0,0.00042672,30]
[391684647,1760727070155,-150.0,0.00042678,30]
[391684648,1760727070165,-150.0,0.00042678,30]
[391684649,1760727070174,-150.0,0.00042678,30]
[391684650,1760727070184,-150.0,0.00042678,30]
[391684651,1760727070193,-500.0,0.00042685,2]
[391684652,1760727070203,-500.0,0.00042685,2]
[391684653,1760727070212,-500.0,0.00042685,2]
[391684654,1760727070222,-150.0,0.00042688,30]
[391684655,1760727070231,-188.88797475,0.00042692,30]
[391684656,1760727070241,-382.54512332,0.00042692,30]
[391684657,1760727070250,-150.0,0.00042706,30]
[391684658,1760727070260,-150.0,0.00042708,30]
[391684659,1760727070270,-200.0,0.0004273,120]
[391684660,1760727070279,-150.0,0.00042732,30]
[391684661,1760727070289,-150.0,0.00042735,30]
[391684662,1760727070298,-150.0,0.00042735,30]
[391684663,1760727070308,-200.0,0.00042737,6]
[391684664,1760727070317,-188.88797475,0.00042738,30]
[391684665,1760727070327,-382.54512332,0.00042738,30]
[391684666,1760727070337,-500.0,0.0004274,2]
[391684667,1760727070346,-500.0,0.0004274,2]
[391684668,1760727070356,-500.0,0.0004274,2]
[391684669,1760727070365,-170.55432281,0.0004274,30]
[391684670,1760727070375,-150.0,0.00042755,30]
[391684671,1760727070385,-150.0,0.0004277,30]
[391684672,1760727070394,-150.0,0.00042782,30]
[391684673,1760727070403,-150.0,0.00042783,30]
[391684674,1760727070531,-188.88797475,0.00042785,30]
[391684675,1760727070542,-382.54512332,0.00042785,30]
[391684676,1760727070553,-150.0,0.00042791,30]
[391684677,1760727070563,-500.0,0.00042794,2]
[391684678,1760727070573,-500.0,0.00042794,2]
[391684679,1760727070584,-500.0,0.00042794,2]
[391684680,1760727070595,-150.0,0.000428,30]
[391684681,1760727070604,-153.0,0.000428,120]
[391684682,1760727070615,-150.0,0.00042831,30]
[391684683,1760727070625,-150.0,0.00042831,30]
[391684684,1760727070635,-188.88797475,0.00042831,30]
[391684685,1760727070644,-150.0,0.00042831,30]
[391684686,1760727070654,-382.54512332,0.00042831,30]
[391684687,1760727070667,-150.0,0.00042831,30]
[391684688,1760727070676,-1419.68849114,0.00042839,120]
[391684689,1760727070687,-463.6994922,0.00042849,2]
[391684690,1760727070696,-500.0,0.00042849,2]
[391684691,1760727070706,-500.0,0.00042849,2]
[391684692,1760727070716,-150.0,0.00042851,30]
[391684693,1760727070726,-150.0,0.00042856,30]
[391684694,1760727070736,-188.88797475,0.00042877,30]
[391684695,1760727070746,-382.54512332,0.00042877,30]
[391684696,1760727070755,-150.0,0.00042879,30]
[391684697,1760727070765,-150.0,0.00042879,30]
[391684698,1760727070775,-150.0,0.00042893,30]
[391684699,1760727070785,-150.0,0.00042904,2]
[391684700,1760727070795,-500.0,0.00042904,2]
[391684701,1760727070804,-150.0,0.00042908,30]
[391684702,1760727070814,-150.0,0.00042908,30]
[391684703,1760727070824,-150.0,0.00042908,30]
[391684704,1760727070833,-150.0,0.00042911,30]
[391684705,1760727070843,-188.88797475,0.00042924,30]
[391684706,1760727070853,-382.54512332,0.00042924,30]
[391684707,1760727070862,-150.0,0.00042927,30]
[391684708,1760727070871,-150.0,0.0004293,30]
[391684709,1760727070880,-150.0,0.00042953,30]
[391684710,1760727070890,-500.0,0.00042959,2]
[391684711,1760727070900,-150.0,0.0004297,30]
[391684712,1760727070909,-188.88797475,0.0004297,30]
[391684713,1760727070918,-150.0,0.0004297,30]
[391684714,1760727070928,-382.54512332,0.0004297,30]
[391684715,1760727070937,-150.0,0.00042974,30]
[391684716,1760727070947,-150.0,0.00042984,30]
[391684717,1760727070956,-150.0,0.00042987,30]
[391684718,1760727070965,-150.0,0.00043004,30]
[391684719,1760727070975,-500.0,0.00043014,2]
[391684720,1760727070985,-188.88797475,0.00043016,30]
[391684721,1760727070993,-382.54512332,0.00043016,30]
[391684722,1760727071003,-150.0,0.00043022,30]
[391684723,1760727071013,-150.0,0.00043022,30]
[391684724,1760727071022,-150.0,0.0004303,30]
[391684725,1760727071032,-150.0,0.00043061,30]
[391684726,1760727071042,-188.88797475,0.00043063,30]
[391684727,1760727071051,-382.54512332,0.00043063,30]
[391684728,1760727071060,-500.0,0.00043068,2]
[391684729,1760727071069,-150.0,0.0004307,30]
[391684730,1760727071078,-150.0,0.00043078,30]
[391684731,1760727071087,-150.0,0.00043081,30]
[391684732,1760727071096,-150.0,0.00043089,30]
[391684733,1760727071105,-188.88797475,0.00043109,30]
[391684734,1760727071114,-382.54512332,0.00043109,30]
[391684735,1760727071124,-150.0,0.00043118,30]
[391684736,1760727071140,-500.0,0.00043123,2]
[391684737,1760727071149,-2050.0,0.00043134,2]
[391684738,1760727071158,-1267.0,0.00043134,2]
[391684739,1760727071168,-3408.0,0.00043134,2]
[391684740,1760727071177,-571.0,0.00043134,2]
[391684741,1760727071187,-1589.0,0.00043134,2]
[391684742,1760727071196,-1310.0,0.00043134,2]
[391684743,1760727071206,-605.0,0.00043134,2]
[391684744,1760727071216,-816.0,0.00043134,2]
[391684745,1760727071226,-3356.0,0.00043134,2]
[391684746,1760727071235,-6445.0,0.00043134,2]
[391684747,1760727071245,-150.0,0.00043137,30]
[391684748,1760727071255,-150.0,0.00043137,30]
[391684749,1760727071265,-150.0,0.00043137,30]
[391684750,1760727071275,-150.0,0.00043137,30]
[391684751,1760727071285,-150.0,0.00043137,30]
[391684752,1760727071295,-150.0,0.00043149,30]
[391684753,1760727071305,-150.0,0.00043152,30]
[391684754,1760727071314,-188.88797475,0.00043156,30]
[391684755,1760727071324,-382.54512332,0.00043156,30]
[391684756,1760727071334,-150.0,0.00043166,30]
[391684757,1760727071344,-150.0,0.00043166,30]
[391684758,1760727071354,-150.0,0.00043174,30]
[391684759,1760727071365,-500.0,0.00043178,2]
[391684760,1760727071374,-188.88797475,0.00043202,30]
[391684761,1760727071384,-382.54512332,0.00043202,30]
[391684762,1760727071393,-150.0,0.00043209,30]
[391684763,1760727071403,-150.0,0.00043213,30]
[391684764,1760727071412,-150.0,0.00043213,30]
[391684765,1760727071422,-150.0,0.00043226,30]
[391684766,1760727071431,-313.0,0.00043233,2]
[391684767,1760727071441,-188.88797475,0.00043248,30]
[391684768,1760727071450,-382.54512332,0.00043248,30]
[391684769,1760727071460,-500.0,0.0004326,2]
[391684770,1760727071469,-150.0,0.00043261,30]
[391684771,1760727071479,-150.0,0.00043268,30]
[391684772,1760727071488,-150.0,0.00043268,30]
[391684773,1760727071497,-150.0,0.00043268,30]
[391684774,1760727071507,-150.0,0.0004329,30]
[391684775,1760727071516,-188.88797475,0.00043295,30]
[391684776,1760727071526,-382.54512332,0.00043295,30]
[391684777,1760727071536,-150.0,0.000433,30]
[391684778,1760727071546,-150.0,0.00043309,30]
[391684779,1760727071556,-150.0,0.00043309,30]
[391684780,1760727071568,-1091.0,0.0004332,30]
[391684781,1760727071588,-150.0,0.00043321,30]
[391684782,1760727071603,-150.0,0.00043328,30]
[391684783,1760727071621,-188.88797475,0.00043341,30]
[391684784,1760727071640,-382.54512332,0.00043341,30]
[391684785,1760727071656,-150.0,0.00043357,30]
[391684786,1760727071670,-424.5731427,0.00043358,11]
[391684787,1760727071688,-150.0,0.00043362,30]
[391684788,1760727071704,-150.0,0.00043366,30]
[391684789,1760727071723,-150.0,0.00043366,30]
[391684790,1760727071740,-150.0,0.00043366,30]
[391684791,1760727071758,-150.0,0.00043374,30]
[391684792,1760727071774,-150.0,0.00043387,30]
[391684793,1760727071790,-188.88797475,0.00043387,30]
[391684794,1760727071807,-150.0,0.00043387,30]
[391684795,1760727071824,-382.54512332,0.00043387,30]
[391684796,1760727071839,-150.0,0.00043405,30]
[391684797,1760727071853,-1381.73,0.00043421,120]
[391684798,1760727071872,-188.88797475,0.00043434,30]
[391684799,1760727071884,-382.54512332,0.00043434,30]
[391684800,1760727071897,-150.0,0.00043443,30]
[391684801,1760727071913,-150.0,0.00043447,30]
[391684802,1760727071925,-150.0,0.00043448,30]
[391684803,1760727071937,-150.0,0.00043452,30]
[391684804,1760727071952,-150.0,0.00043452,30]
[391684805,1760727071965,-150.0,0.00043455,30]
[391684806,1760727071978,-188.88797475,0.0004348,30]
[391684807,1760727071990,-382.54512332,0.0004348,30]
[391684808,1760727072004,-150.0,0.000435,30]
[391684809,1760727072016,-150.0,0.00043504,30]
[391684810,1760727072028,-150.0,0.00043506,30]
[391684811,1760727072041,-150.0,0.00043519,30]
[391684812,1760727072054,-150.0,0.00043522,30]
[391684813,1760727072067,-188.88797475,0.00043526,30]
[391684814,1760727072080,-382.54512332,0.00043526,30]
[391684815,1760727072093,-150.0,0.00043548,30]
[391684816,1760727072106,-150.0,0.00043549,30]
[391684817,1760727072119,-150.0,0.00043566,30]
[391684818,1760727072132,-188.88797475,0.00043573,30]
[391684819,1760727072144,-382.54512332,0.00043573,30]
[391684820,1760727072156,-150.0,0.00043596,30]
[391684821,1760727072169,-150.0,0.00043596,30]
[391684822,1760727072183,-150.0,0.00043596,30]
[391684823,1760727072197,-150.0,0.00043596,30]
[391684824,1760727072211,-150.0,0.00043596,30]
[391684825,1760727072224,-150.0,0.00043596,30]
[391684826,1760727072237,-150.0,0.00043596,30]
[391684827,1760727072252,-150.0,0.00043596,30]
[391684828,1760727072268,-150.0,0.00043596,30]
[391684829,1760727072284,-188.88797475,0.00043619,30]
[391684830,1760727072299,-382.54512332,0.00043619,30]
[391684831,1760727072310,-150.0,0.00043626,30]
[391684832,1760727072321,-150.0,0.00043643,30]
[391684833,1760727072331,-150.0,0.00043644,30]
[391684834,1760727072341,-188.88797475,0.00043665,30]
[391684835,1760727072350,-382.54512332,0.00043665,30]
[391684836,1760727072366,-150.0,0.0004367,30]
[391684837,1760727072376,-150.0,0.00043672,30]
[391684838,1760727072386,-150.0,0.00043685,30]
[391684839,1760727072395,-150.0,0.00043688,30]
[391684840,1760727072406,-150.0,0.00043691,30]
[391684841,1760727072416,-188.88797475,0.00043712,30]
[391684842,1760727072426,-382.54512332,0.00043712,30]
[391684843,1760727072436,-469.66353557,0.00043726,2]
[391684844,1760727072447,-150.0,0.00043736,30]
[391684845,1760727072456,-150.0,0.00043739,30]
[391684846,1760727072466,-150.0,0.00043739,30]
[391684847,1760727072476,-150.0,0.00043744,30]
[391684848,1760727072486,-150.0,0.00043745,30]
[391684849,1760727072496,-150.0,0.00043749,30]
[391684850,1760727072506,-188.88797475,0.00043758,30]
[391684851,1760727072515,-382.54512332,0.00043758,30]
[391684852,1760727072525,-150.0,0.00043787,30]
[391684853,1760727072534,-150.0,0.00043804,30]
[391684854,1760727072544,-188.88797475,0.00043804,30]
[391684855,1760727072554,-150.0,0.00043804,30]
[391684856,1760727072564,-382.54512332,0.00043804,30]
[391684857,1760727072574,-150.0,0.00043818,30]
[391684858,1760727072585,-150.0,0.00043825,30]
[391684859,1760727072596,-150.0,0.00043825,30]
[391684860,1760727072607,-150.0,0.00043825,30]
[391684861,1760727072616,-150.0,0.0004383,30]
[391684862,1760727072626,-150.0,0.00043835,30]
[391684863,1760727072637,-327.3455537,0.00043835,120]
[391684864,1760727072647,-9787.5225,0.00043835,120]
[391684865,1760727072658,-1000.0,0.00043836,27]
[391684866,1760727072668,-188.88797475,0.00043851,30]
[391684867,1760727072678,-382.54512332,0.00043851,30]
[391684868,1760727072687,-150.0,0.00043864,30]
[391684869,1760727072698,-150.0,0.00043871,30]
[391684870,1760727072708,-151.0,0.00043877,120]
[391684871,1760727072717,-151.0,0.00043877,120]
[391684872,1760727072727,-500.0,0.00043879,120]
[391684873,1760727072737,-500.0,0.00043879,120]
[391684874,1760727072747,-212.98,0.00043879,120]
[391684875,1760727072757,-616969.088857,0.0004388,30]
[391684876,1760727072777,-5400.99738397,0.0004388,30]
[391684877,1760727073169,-124.24925549,0.00029829,2]
[391684878,1760727073365,-386.86464907,0.00024557,3]
[391684879,1760727073382,-3774.89940001,0.00024557,3]
[391684881,1760727162446,150.0,0.00032144,30]
[391684884,1760727322046,1600.0,0.00025412,120]
[391684893,1760727799210,1582.95629104,0.00032098,120]
[391684904,1760728079437,382.39,0.00010927,2]
[391684905,1760728079617,382.39,0.00011502,2]
[391684906,1760728079839,382.39,0.00012077,2]
[391684907,1760728080058,382.39,0.00012652,2]
[391684908,1760728093780,-152.7395482,0.00013227,2]
[391684922,1760728231474,-229.6504518,0.00013227,2]
[391684923,1760728231484,-500.0,0.00013515,3]
[391684924,1760728231493,-382.39,0.00013802,2]
[391684925,1760728231503,-382.39,0.00014377,2]
[391684926,1760728231512,-500.0,0.00014377,3]
[391684927,1760728231522,-500.0,0.00014377,3]
[391684928,1760728231531,-500.0,0.0001455,3]
[391684929,1760728231541,-500.0,0.0001455,3]
[391684930,1760728231551,-569.71157097,0.0001455,2]
[391684931,1760728231560,-382.39,0.00014953,2]
[391684932,1760728231569,-382.39,0.00015528,2]
[391684933,1760728231578,-382.39,0.00016103,2]
[391684934,1760728231587,-382.39,0.00016678,2]
[391684935,1760728231596,-250.0,0.00017,2]
[391684936,1760728231606,-150.0,0.00017,2]
[391684937,1760728231615,-382.39,0.00017253,2]
[391684938,1760728231624,-382.39,0.00017828,2]
[391684939,1760728231634,-382.39,0.00018403,2]
[391684940,1760728231643,-1200.0,0.00018699,2]
[391684941,1760728231652,-382.39,0.00018978,2]
[391684942,1760728231662,-300.0,0.00019,2]
[391684943,1760728231671,-300.0,0.00019499,2]
[391684944,1760728231681,-1058.20379575,0.000195,2]
[391684945,1760728231693,-702.73856019,0.000195,2]
[391684946,1760728231705,-1114.63276947,0.000195,2]
[391684947,1760728231812,-841.09768603,0.000195,2]
[391684948,1760728231828,-5052.34570038,0.000195,2]
[391684949,1760728231838,-382.39,0.00019553,2]
[391684950,1760728231847,-8769.01851182,0.000197,2]
[391684951,1760728231856,-8769.01851182,0.000199,2]
[391684952,1760728231866,-8769.01851182,0.000201,2]
[391684954,1760728231875,-382.39,0.00020128,2]
[391684956,1760728231885,-8769.01851182,0.000203,2]
[391684958,1760728231895,-500.0,0.0002044,2]
[391684960,1760728231909,-500.0,0.0002044,2]
[391684962,1760728231918,-500.0,0.00020445,2]
[391684965,1760728231929,-200.0,0.00020455,2]
[391684967,1760728231939,-1385.0,0.00020488,2]
[391684969,1760728231949,-8769.01851182,0.000205,2]
[391684971,1760728231958,-500.0,0.00020591,2]
[391684973,1760728231967,-500.0,0.00020591,2]
[391684975,1760728231979,-500.0,0.00020591,2]
[391684977,1760728231988,-382.39,0.00020703,2]
[391684979,1760728231997,-355.22,0.00020719,2]
[391684982,1760728232007,-8769.01851182,0.000208,2]